Cogmind - Beta 15 @@@ ROGUE MODE // 2025.09.07 @ 23:12:32 Player: k1ll3rb0t Result: Destroyed by B2-S6G(B) with Slug Cannon Performance ------------- Evolutions (5) 2500 Regions Visited (9) 1800 Robots Destroyed (95) 475 Value Destroyed (4103) 4103 Prototype IDs (12) 240 Alien Tech Used (0) 0 Bonus (1829) 1829 TOTAL SCORE: 10947 Bonus ------- High Alert Combat Kills 435 Follower Combat Kills 94 Registered with UFD 300 Met Optimus in HQ 500 MAIN.C Attacked Warlord 500 Cogmind --------- Core Integrity 0/1000 Matter 272/300 Energy 100/100 System Corruption 6% Temperature Cool (0) Movement Core (50) Location -5/Warlord Parts ------- > --- POWER (1) -------- (None) > --- PROPULSION (6) --- (None) > --- UTILITY (6) ------ (None) > --- WEAPON (4) ------- (None) > --- INVENTORY (5) ---- Hypervelocity Gauss Cannon Heavy Rocket Launcher Improved Plasma Cutter Makeshift Hammer Great Axe Peak State ------------ > --- POWER ------------ Light Fission Core > --- PROPULSION ------- Antigrav System Antigrav System Antigrav System Antigrav System Antigrav System Linear Gravjet > --- UTILITY ---------- Scrap Suit Huge Storage Unit Deep Structural Scanner Advanced Sensor Array Improved Signal Interpreter > --- WEAPON ----------- Flak Gun Magnetic Acceleration Cannon Enhanced Gauss Cannon Great Maul > --- INVENTORY -------- Improved Deuterium Engine Light Fission Core Light Fission Core Overtuned Scrapsphere Overtuned Scrapsphere Overtuned Scrapsphere Overtuned Scrapsphere Scrap Suit Improved Heat Sink Matter Compressor Improved Sensor Array Advanced Sensor Array Improved Terrain Scan Processor Improved Light Armor Plating Authchip [Weapon] Mapping Drone Bay Improved Proton Missile Launcher Heavy Rocket Launcher Remote Datajack Plasma Cutter CPS Tube CPS Tube CPS Tube DRS Beacon [Rating: 89] Favorites ----------- Power Angular Momentum Engine Engine Angular Momentum Engine Power Core Light Fission Core Reactor Light Antimatter Reactor Propulsion Spiked Treads Treads Spiked Treads Leg Carbon-fiber Leg Wheel Overtuned Scrapsphere Hover Unit Antigrav System Utility Huge Storage Unit Device Deep Structural Scanner Storage Huge Storage Unit Processor Improved Signal Interpreter Hackware Authchip [Propulsion] Protection Improved Medium Armor Plating Weapon Great Maul Energy Gun EM Pulse Gun Energy Cannon Heavy Plasma Cannon Ballistic Gun Battle Rifle Ballistic Cannon Magnetic Acceleration Cannon Launcher Mini Grenade Launcher Special Weapon Plasma Cutter Impact Weapon Great Maul Slashing Weapon Falx Piercing Weapon Heavy Pick Build | -11 -10 -10 -9 -9 -6 -5 -5 -5 -5 ------- Run | Yrd Mat Sub Rec Scr Fac Fac Upp Upp War Slots Evolved 10 | . . . . . 8 2 . . . Power . | . . . . . . . . . . Propulsion 4 | . . . . . 4 . . . . Utility 4 | . . . . . 3 1 . . . Weapon 2 | . . . . . 1 1 . . . Parts Attached 146 | 7 5 4 6 9 29 69 2 3 12 Power 10 | 1 . . 1 1 2 3 . 1 1 Engine 4 | 1 . . 1 1 1 . . . . Core 5 | . . . . . 1 3 . 1 . Reactor 1 | . . . . . . . . . 1 Propulsion 47 | 2 3 . 1 2 9 28 1 . 1 Treads 20 | 2 . . 1 2 5 10 . . . Leg 8 | . . . . . . 7 . . 1 Wheel 13 | . 3 . . . 4 5 1 . . Hover 6 | . . . . . . 6 . . . Flight . | . . . . . . . . . . Utility 46 | 2 2 . 2 3 11 21 1 . 4 Device 25 | 1 1 . . 1 4 15 . . 3 Storage 9 | 1 1 . 2 1 . 3 1 . . Processor 3 | . . . . . 1 1 . . 1 Hackware 2 | . . . . 1 1 . . . . Protection 7 | . . . . . 5 2 . . . Artifact . | . . . . . . . . . . Weapon 43 | 2 . 4 2 3 7 17 . 2 6 Energy Gun 7 | 1 . 3 . . 1 2 . . . Energy Cannon 5 | . . . . 2 1 2 . . . Ballistic Gun 4 | 1 . 1 . . 2 . . . . Ballistic Cannon 4 | . . . . . . 4 . . . Launcher 6 | . . . . . 2 4 . . . Special Weapon 5 | . . . 1 . 1 1 . 1 1 Impact Weapon 4 | . . . 1 1 . . . 1 1 Slashing Weapon 4 | . . . . . . 3 . . 1 Piercing Weapon 4 | . . . . . . 1 . . 3 Special Melee Weapon . | . . . . . . . . . . Unidentified Prototypes 5 | . . . . . . 4 . . 1 Corrupted Parts 4 | . . 1 . 1 1 1 . . . System Corruption 11 | . . 2 . 3 4 2 . . . Parts Lost 72 | . . 3 2 . 25 26 1 2 13 Power 6 | . . . 1 . 2 1 . 1 1 Propulsion 35 | . . . 1 . 11 15 . . 8 Utility 19 | . . 1 . . 7 7 1 . 3 Weapon 12 | . . 2 . . 5 3 . 1 1 Highest Loss Streak 17 | . . 2 2 . 17 4 1 2 11 To Critical Strikes 2 | . . . . . . 1 1 . . Average Backups 20 | 5 9 10 18 23 16 21 19 19 19 Power 1 | . 1 2 1 1 2 1 2 1 . Propulsion 4 | 3 5 6 7 5 . 4 2 3 2 Utility 7 | . . . 5 9 7 6 6 5 4 Weapon 4 | 1 1 1 3 5 1 4 6 6 9 Tool/Special . | . . . . . . . . . . Unused Backups 27 | . . . 2 6 1 5 1 1 11 Power 2 | . . . . . 1 . . . 1 Propulsion 8 | . . . 2 2 . 1 . 1 2 Utility 9 | . . . . 3 . 3 1 . 2 Weapon 6 | . . . . 1 . 1 . . 4 Tool/Special 2 | . . . . . . . . . 2 Average Slot Usage (%) 91 | . 100 100 100 89 78 93 91 93 90 Engine 9 | . 14 14 14 13 4 . . . . Core 1 | . . . . . . 4 5 4 4 Treads 21 | . 20 24 28 27 19 14 . . . Leg 3 | . . . . . . 3 23 23 21 Wheel 3 | . 7 3 . . 8 11 3 5 5 Device 14 | . 14 14 14 13 9 17 17 22 20 Storage 12 | . 14 14 14 13 6 9 16 11 10 Energy Gun 1 | . 14 10 . . 2 1 . . . Energy Cannon 1 | . . . . 2 1 . . . . Ballistic Gun 5 | . 14 17 26 1 6 1 . . . Special Weapon 1 | . . . . 3 . . . . . Impact Weapon 7 | . . . . 11 4 4 5 4 3 Slashing Weapon 2 | . . . . . . 5 11 11 10 Peak Build Rating 89 | 7 8 10 14 28 49 89 76 77 85 Average Rating 34 | 4 7 9 12 21 36 73 72 76 75 On Entrance 32 | . 7 8 10 14 28 39 69 75 77 Naked Turns 171 | . . . . 163 . . . . 8 Heaviest Build 139 | 12 27 30 88 108 125 139 81 86 88 Greatest Support 168 | 40 40 40 40 40 103 168 60 60 60 Greatest Overweight (x) 13 | . . . 2 6 13 7 1 2 8 Average Overweight (x) 1 | . . . . 1 2 1 1 1 1 Largest Inventory Capacity 25 | 8 15 15 25 25 25 25 20 20 20 Average Capacity 22 | 6 14 15 19 24 25 24 20 20 19 Most Carried 25 | 7 11 13 25 25 25 25 20 20 20 Average Carried 21 | 5 9 10 18 24 18 23 19 19 19 Final Capacity 25 | 8 15 15 25 25 25 20 20 20 5 Final Carried 25 | 7 11 13 25 25 24 20 20 20 5 Class Distribution -------------------- 70% | Mutant 15% | Scavenger-Gladiator 3% | Scavenger-Scrapper Dominant Class ---------------- Mutant | -10/Materials Mutant | -10/Subcaves Mutant | -9/Recycling Mutant | -9/Scraptown Scavenger-Mutant | -6/Factory Scavenger-Gladiator | -5/Factory Scavenger-Gladiator | -5/Upper Caves Scavenger-Gladiator | -5/Upper Caves Scavenger-Gladiator | -5/Warlord Resources | -11 -10 -10 -9 -9 -6 -5 -5 -5 -5 ----------- Run | Yrd Mat Sub Rec Scr Fac Fac Upp Upp War Matter Collected 3638 | 270 28 201 121 190 433 2134 64 103 94 Remotely 288 | 60 18 15 . . . 195 . . . Salvage Created 4917 | 92 110 144 50 . 372 3467 305 85 292 Parts 190 | 2 8 10 3 . 24 121 5 2 15 Haulers Intercepted 1 | . . . . . . 1 . . . Recyclers Shooed 7 | . . . 1 . . 6 . . . Parts Field Recycled . | . . . . . . . . . . Retrieved Matter . | . . . . . . . . . . Parts Self-Destructed 27 | . . 15 . . . . 11 1 . Prevented . | . . . . . . . . . . Kills | -11 -10 -10 -9 -9 -6 -5 -5 -5 -5 ------- Run | Yrd Mat Sub Rec Scr Fac Fac Upp Upp War Combat Hostiles Destroyed 77 | . 2 7 1 . 11 47 4 1 4 Melee 36 | . . . . . 1 26 4 1 4 Guns 21 | . 2 7 1 . 6 5 . . . Cannons 10 | . . . . . . 10 . . . AOE 7 | . . . . . 2 5 . . . Classes Destroyed 14 | 1 1 3 1 . 2 4 1 . 1 Worker 2 | . . . . . . 2 . . . Builder 4 | . . . . . 1 3 . . . Hauler 1 | . . . . . . 1 . . . Recycler 9 | 1 . . . . . 8 . . . Mechanic 1 | . . . . . . 1 . . . Turret 1 | . . 1 . . . . . . . Swarmer 16 | . . 6 . . 5 5 . . . Grunt 28 | . 2 . . . 3 20 3 . . Sentry 8 | . . . 1 . 2 3 1 1 . Hunter 7 | . . . . . . 7 . . . Programmer 13 | . . . . . 1 12 . . . Subdweller 1 | . . 1 . . . . . . . Samaritan 1 | . . . . . . . 1 . . Thug 1 | . . . . . . . . . 1 Wizard 1 | . . . . . . . . . 1 Mutant 1 | . . . . . . . . . 1 Commander 1 | . . . . . . . . . 1 Best Kill Streak 10 | 1 2 4 1 . 3 10 3 1 2 Combat Bots Only 8 | . 2 4 1 . 3 8 3 1 2 Max Kills in Single Turn 3 | 1 1 2 1 . 1 3 1 1 1 Gunslinging . | . . . . . . . . . . Exploded 2 | . . . . . 1 2 . . . Melee 1 | . . . . . 1 1 1 1 1 Uniques/NPCs Destroyed . | . . . . . . . . . . Combat | -11 -10 -10 -9 -9 -6 -5 -5 -5 -5 -------- Run | Yrd Mat Sub Rec Scr Fac Fac Upp Upp War Hostile Shots Fired 1009 | . 10 96 8 . 275 400 4 10 206 Missed 318 | . 4 35 3 . 83 107 1 3 82 Hits 691 | . 6 61 5 . 192 293 3 7 124 Melee 3 | . . . . . 2 1 . . . Projectile 688 | . 6 61 5 . 190 292 3 7 124 AOE 3 | . . . . . . 3 . . . Critical Strikes 23 | . 1 . 1 . 4 15 1 . 1 Part Disruptions 3 | . . . . . . . . 2 1 Damage Taken 10703 | . 77 556 72 . 2706 5133 82 209 1868 Core 1492 | . . 86 . . 384 439 . 18 565 Absorbed by Shields 587 | . . . . . . 258 . 18 311 Redirected to Shielding 103 | . . . . . 103 . . . . Ignored by Resistances 73 | . . . . . . 73 . . . Regen/Repaired (Parts) 10 | . . . . . . 10 . . . Core Remaining (%) 73 | 100 . . . 65 54 . . . . Volleys Fired 156 | 2 11 34 12 . 37 59 . . 1 Largest 4 | 2 2 2 2 . 3 4 . . 1 Hottest 221 | 60 60 85 45 . 165 221 . . . Shots Fired 309 | 4 19 65 26 . 67 127 . . 1 Gun 191 | 4 19 65 26 . 40 37 . . . Cannon 96 | . . . . . 19 77 . . . Launcher 17 | . . . . . 7 10 . . . Special 5 | . . . . . 1 3 . . 1 Kinetic 202 | 2 8 33 26 . 29 104 . . . Thermal 30 | . . 19 . . 11 . . . . Explosive 13 | . . . . . 7 6 . . . Electromagnetic 59 | 2 11 13 . . 19 14 . . . Robot Hit Streak 12 | 2 5 11 12 . 11 11 . . 6 Robot Miss Streak 11 | 1 3 11 1 . 5 6 . . . Penetration Max 1 | . . . . . . 1 . . . Secondary Targets . | . . . . . . . . . . Shots Hit Robots 341 | 2 9 30 20 . 59 185 7 7 22 Core Hits 193 | 2 5 13 4 . 38 114 6 1 10 Critical Kills 1 | . . . . . . . . 1 . Critical Parts Destroyed 9 | . . . . . 2 7 . . . Critical Strikes 36 | . . . . . 2 25 . 3 6 Blast 10 | . . . . . . 10 . . . Smash 10 | . . . . . 2 7 . 1 . Sever 13 | . . . . . . 7 . 2 4 Impale 3 | . . . . . . 1 . . 2 Melee Attacks 240 | . . . . . 23 165 11 7 34 Impact 66 | . . . . . 23 38 3 2 . Slashing 106 | . . . . . . 80 4 2 20 Piercing 68 | . . . . . . 47 4 3 14 Sneak Attacks 18 | . . . . . . 14 1 . 3 Combat Hostiles 4 | . . . . . . 1 . . 3 Follow-up Attacks 64 | . . . . . . 39 3 4 18 Damage Inflicted 11996 | 25 113 521 239 . 1672 8037 292 244 853 Guns 2053 | 23 113 464 226 . 510 717 . . . Cannons 2105 | . . . . . 368 1737 . . . Explosions 1681 | . . 57 . . 430 1194 . . . Melee 6132 | . . . . . 363 4389 292 244 844 Ramming 25 | 2 . . 13 . 1 . . . 9 Kinetic 3077 | 10 22 224 226 . 386 2209 . . . Thermal 759 | . . 239 . . 402 118 . . . Explosive 1065 | . . . . . 300 765 . . . Electromagnetic 938 | 13 91 58 . . 220 556 . . . Impact 1366 | . . . . . 363 862 84 57 . Slashing 3239 | . . . . . . 2506 93 88 552 Piercing 1527 | . . . . . . 1021 115 99 292 Highest Corruption 29 | . . 2 2 3 7 24 29 29 29 Average Corruption 11 | . . 2 2 3 1 14 29 29 18 Corruption Purged . | . . . . . . . . . . Corruption Blocked . | . . . . . . . . . . Effects 157 | . . 4 22 . 2 70 29 26 4 Message Errors 37 | . . . 7 . 1 15 8 5 1 Matter Fused 35 | . . 1 4 . . 17 6 5 2 Heat Flow Errors 21 | . . 1 3 . . 7 5 5 . Energy Discharges 19 | . . 1 4 . . 5 6 3 . Parts Rejected 2 | . . . . . . 2 . . . Parts Fused 3 | . . . . . . 2 . 1 . Data Loss (minor) 16 | . . . 1 . . 9 4 2 . Data Loss (major) 13 | . . 1 1 . 1 7 . 3 . Misfires 2 | . . . 2 . . . . . . Alerts 5 | . . . . . . 2 . 2 1 Misdirections 4 | . . . . . . 4 . . . Overload Shots . | . . . . . . . . . . Overflow Damage 878 | . . . . . 102 774 . . 2 Projectiles 195 | . . . . . 20 175 . . . Explosions 15 | . . . . . 15 . . . . Melee 668 | . . . . . 67 599 . . 2 Knockbacks 17 | . . . . . 1 16 . . . Impact 4 | . . . . . 1 3 . . . Kinetic 10 | . . . . . . 10 . . . Secondary 3 | . . . . . . 3 . . . Self-Inflicted Damage 269 | . . . . . 238 31 . . . Shots 12 | . . . . . 8 4 . . . Rammed 4 | 2 . . 1 . 1 . . . . Targets Rammed 6 | 2 . . 1 . 1 . . . 2 Kicked 2 | . . . . . . . . . 2 Crushed . | . . . . . . . . . . Highest Temperature 292 | 40 97 91 271 . 191 292 205 244 210 Average Temperature 71 | 20 54 12 67 . 78 78 89 106 115 Received Heat Transfer 1938 | . 63 186 18 . 729 789 27 18 108 Siege Activations . | . . . . . . . . . . Martial Activations . | . . . . . . . . . . Shielding Activations . | . . . . . . . . . . Robots Disrupted . | . . . . . . . . . . Combat Hostiles . | . . . . . . . . . . Robots Corrupted 7 | . . . . . 2 5 . . . Combat Hostiles 3 | . . . . . 2 1 . . . Parts Fried 13 | . . . . . . 13 . . . Impact Corruptions 16 | . . . . . 4 12 . . . Robots Melted . | . . . . . . . . . . Combat Hostiles . | . . . . . . . . . . Parts Melted 1 | . . 1 . . . . . . . Heat Transferred 899 | . . 299 . . 500 100 . . . Parts Sabotaged . | . . . . . . . . . . Parts Stolen . | . . . . . . . . . . Parts Stripped . | . . . . . . . . . . Power Chain Reactions 3 | . . 1 . . 1 1 . . . Alert | -11 -10 -10 -9 -9 -6 -5 -5 -5 -5 ------- Run | Yrd Mat Sub Rec Scr Fac Fac Upp Upp War Maximum Alert Level 3 | . . . . . . 3 . . . Low Security (%) 68 | 100 100 . 100 . 100 29 . . . Level 1 11 | . . . . . . 25 . . . Level 2 13 | . . . . . . 31 . . . Level 3 5 | . . . . . . 13 . . . Level 4 . | . . . . . . . . . . Level 5 . | . . . . . . . . . . High Security . | . . . . . . . . . . Max Security . | . . . . . . . . . . Peak Influence 906 | 5 60 . 70 . 80 906 . . . Initial 70 | . . . 70 . . . . . . Average 170 | . 8 . 3 . 24 372 . . . Influence Increases 2706 | 5 124 270 40 . 458 1639 150 20 . Destroy 0b10 Robot/C 1520 | . 40 140 20 . 280 940 80 20 . Destroy 0b10 Robot/NC 85 | 5 . . . . 5 75 . . . Destroy Leader 312 | . 10 10 . . 60 222 10 . . Allied During Kill 10 | . . . . . 10 . . . . Successful Hack 81 | . 14 . 20 . 5 42 . . . Disable Machine 60 | . . . . . 15 45 . . . Destroy Structure 203 | . . . . . 23 180 . . . Partial Spotted 30 | . . . . . 15 15 . . . Lose Combat Pursuer 405 | . 60 120 . . 45 120 60 . . Influence Decreases 2706 | 5 72 174 188 . 458 753 576 386 94 Entered New Map 614 | . . 26 78 . . . 328 88 94 Time Decay 1567 | 5 72 128 90 . 259 497 238 278 . Lost Part 451 | . . 20 20 . 125 256 10 20 . Lost Ally 74 | . . . . . 74 . . . . Squads Dispatched 28 | . 1 . . . 9 18 . . . Investigation 11 | . 1 . . . 3 7 . . . Extermination 8 | . . . . . 2 6 . . . Reinforcement 5 | . . . . . 1 4 . . . Assault . | . . . . . . . . . . Garrison 4 | . . . . . 3 1 . . . Intercept . | . . . . . . . . . . Searches Triggered . | . . . . . . . . . . Construction Impeded 2 | . . . . . . 2 . . . Haulers Reinforced . | . . . . . . . . . . Active Scanning Responses . | . . . . . . . . . . Cargo Convoy Interrupts . | . . . . . . . . . . Stealth | -11 -10 -10 -9 -9 -6 -5 -5 -5 -5 --------- Run | Yrd Mat Sub Rec Scr Fac Fac Upp Upp War Distress Signals 7 | . 1 . . . . 6 . . . Communications Jammed . | . . . . . . . . . . Distress Signals . | . . . . . . . . . . Times Spotted 143 | . 6 14 1 . 23 74 6 1 18 Peak Tracking Total 13 | . 5 3 1 . 4 6 4 1 13 Tactical Retreats 15 | . 1 4 . . 2 7 1 . . Traps | -11 -10 -10 -9 -9 -6 -5 -5 -5 -5 ------- Run | Yrd Mat Sub Rec Scr Fac Fac Upp Upp War Traps Triggered 4 | . . . . . . 2 . 1 1 Indirectly . | . . . . . . . . . . Trap Hack Attempts . | . . . . . . . . . . Triggered . | . . . . . . . . . . Disarmed . | . . . . . . . . . . Reprogrammed . | . . . . . . . . . . Reused . | . . . . . . . . . . Traps Extracted . | . . . . . . . . . . Installed . | . . . . . . . . . . Triggered . | . . . . . . . . . . Most Traps Carried 3 | . . . . . . . . . 3 Machines | -11 -10 -10 -9 -9 -6 -5 -5 -5 -5 ---------- Run | Yrd Mat Sub Rec Scr Fac Fac Upp Upp War Machines Disabled 5 | . . 1 . . 1 3 . . . Max in Single Turn 1 | . . 1 . . 1 1 . . . Machines Repaired . | . . . . . . . . . . Machines Dismantled . | . . . . . . . . . . Machines Sabotaged . | . . . . . . . . . . Overloaded Fab Kills . | . . . . . . . . . . Hacking | -11 -10 -10 -9 -9 -6 -5 -5 -5 -5 --------- Run | Yrd Mat Sub Rec Scr Fac Fac Upp Upp War Machines Accessed 43 | . 2 1 6 5 5 15 2 1 6 Terminals 17 | . 2 . 5 . 2 8 . . . Fabricators 2 | . . . . . 1 1 . . . Repair Stations . | . . . . . . . . . . Recycling Units 8 | . . . 1 . 2 5 . . . Scanalyzers 1 | . . . . . . 1 . . . Garrison Access . | . . . . . . . . . . Total Hacks 112 | . 3 4 18 31 10 33 5 1 7 Successful 73 | . 2 4 7 31 4 12 5 1 7 Failed 38 | . 1 . 10 . 6 21 . . . Catastrophic 10 | . . . 2 . 1 7 . . . Database Lockouts 1 | . . . 1 . . . . . . Manual 31 | . . . 6 1 7 17 . . . Terminals 43 | . 3 . 15 . 3 22 . . . Fabricators 4 | . . . . . 2 2 . . . Repair Stations . | . . . . . . . . . . Recycling Units 16 | . . . 3 . 5 8 . . . Scanalyzers 1 | . . . . . . 1 . . . Garrison Access . | . . . . . . . . . . Terminal Hacks 62 | . 2 4 6 31 1 5 5 1 7 Record 37 | . . 4 . 22 . . 4 . 7 Part Schematic 4 | . . . 3 . . 1 . . . Robot Analysis 9 | . . . . 8 . 1 . . . Open Door 2 | . . . . . . . 1 1 . Open DSF 1 | . . . . . 1 . . . . Branch Access Points 1 | . . . . . . 1 . . . Terminal Index 1 | . . . . . . 1 . . . Alert Level 1 | . . . 1 . . . . . . Locate Traps 2 | . 1 . . . . 1 . . . Hauler Manifests 1 | . 1 . . . . . . . . Registered Components 1 | . . . 1 . . . . . . Zone Layout 1 | . . . 1 . . . . . . Proto ID Catalog 1 | . . . . 1 . . . . . Fabricator Hacks 4 | . . . . . 2 2 . . . Load Schematic 2 | . . . . . 1 1 . . . Build 2 | . . . . . 1 1 . . . Repair Station Hacks . | . . . . . . . . . . Recycling Unit Hacks 1 | . . . 1 . . . . . . Retrieve Components 1 | . . . 1 . . . . . . Scanalyzer . | . . . . . . . . . . Garrison Access Hacks . | . . . . . . . . . . Unauthorized Hacks 6 | . . . . . 1 5 . . . Terminals 1 | . . . . . . 1 . . . Botnet 1 | . . . . . . 1 . . . Fabricators . | . . . . . . . . . . Repair Stations . | . . . . . . . . . . Recycling Units 5 | . . . . . 1 4 . . . Fedlink 4 | . . . . . . 4 . . . Scrapoids 1 | . . . . . 1 . . . . Scanalyzers . | . . . . . . . . . . Garrison Access . | . . . . . . . . . . Data Cores Recovered . | . . . . . . . . . . Used . | . . . . . . . . . . Hacking Detections 18 | . 1 . 5 . 2 10 . . . Full Trace Events 7 | . . . 3 . 2 2 . . . Feedback Events . | . . . . . . . . . . Feedback Blocked . | . . . . . . . . . . Robot Schematics Acquired . | . . . . . . . . . . Robots Built . | . . . . . . . . . . Authchips . | . . . . . . . . . . Time . | . . . . . . . . . . Total Robot Build Rating . | . . . . . . . . . . Part Schematics Acquired 4 | . . . 3 . . 1 . . . Parts Built 4 | . . . . . 2 2 . . . Authchips 2 | . . . . . 1 1 . . . Time 124 | . . . . . 62 62 . . . Total Part Build Rating 8 | . . . . . 4 4 . . . Parts Repaired . | . . . . . . . . . . Time . | . . . . . . . . . . Parts Recycled . | . . . . . . . . . . Recycled Matter . | . . . . . . . . . . Retrieved Matter . | . . . . . . . . . . Retrieved Components 1 | . . . 1 . . . . . . Parts Scanalyzed . | . . . . . . . . . . Part Schematics Acquired . | . . . . . . . . . . Parts Damaged . | . . . . . . . . . . Bothacking | -11 -10 -10 -9 -9 -6 -5 -5 -5 -5 ------------ Run | Yrd Mat Sub Rec Scr Fac Fac Upp Upp War Used RIF Installer . | . . . . . . . . . . Robots Hacked 1 | . . . . . . 1 . . . Non-combat 1 | . . . . . . 1 . . . Combat . | . . . . . . . . . . Robot Hacks Applied 3 | . . . . . . 3 . . . parse_system 1 | . . . . . . 1 . . . no_distress 1 | . . . . . . 1 . . . find_recycling 1 | . . . . . . 1 . . . Relay Couplers Released . | . . . . . . . . . . Fabnet Peak Effective % . | . . . . . . . . . . Robots Rewired . | . . . . . . . . . . Allies Hacked . | . . . . . . . . . . Hacks Repelled . | . . . . . . . . . . Allies | -11 -10 -10 -9 -9 -6 -5 -5 -5 -5 -------- Run | Yrd Mat Sub Rec Scr Fac Fac Upp Upp War Total Allies 5 | . . . . . 5 . . . . Largest Group 5 | . . . . . 5 . . . . Highest-Rated Group 140 | . . . . . 140 . . . . Highest-Rated Ally 28 | . . . . . 28 . . . . Total Orders 1 | . . . . . 1 . . . . STAY 1 | . . . . . 1 . . . . Ally Attacks 26 | . . . . . 26 . . . . Total Damage 436 | . . . . . 436 . . . . Kills 3 | . . . . . 3 . . . . Allies Corrupted 2 | . . . . . . . . . 2 Allies Melted . | . . . . . . . . . . Intel | -11 -10 -10 -9 -9 -6 -5 -5 -5 -5 ------- Run | Yrd Mat Sub Rec Scr Fac Fac Upp Upp War Active Infowar (turns) 13452 | . 277 560 1599 7454 494 2036 43 525 464 Sensors 2600 | . . . . . 402 1209 . 525 464 Structural 11322 | . 277 560 1599 7454 92 1297 43 . . Machine Analysis 2 | . . . . . . . . . 2 Robot Analysis Total 9 | . . . . 8 . 1 . . . Derelict Logs Recovered 5 | . . 1 . . . . 1 3 . Drone Launches 17 | . . . . . . . . . 17 Drone Recoveries 12 | . . . . . . . . . 12 Exploration | -11 -10 -10 -9 -9 -6 -5 -5 -5 -5 ------------- Run | Yrd Mat Sub Rec Scr Fac Fac Upp Upp War Turns Passed 15681 | 113 497 610 1599 7710 902 2458 511 608 673 Spaces Moved 6256 | 59 301 322 703 2459 313 1164 253 298 384 Core 347 | 10 . . . 322 . . . . 15 Treads 3939 | 49 203 293 703 2129 204 358 . . . Legs 811 | . . . . . . 102 253 298 158 Wheels 1094 | . 98 29 . 8 109 639 . . 211 Hover 65 | . . . . . . 65 . . . Flight . | . . . . . . . . . . Fastest Speed 50 | 50 100 100 160 50 110 91 190 190 50 Average Speed 224 | 141 140 154 218 310 207 134 190 190 152 Slowest Speed 480 | 160 160 160 340 360 480 480 190 260 190 Overloaded Moves . | . . . . . . . . . . Propulsion Burnouts . | . . . . . . . . . . Robots Hopped . | . . . . . . . . . . Potential Cave-ins . | . . . . . . . . . . Cave-ins Triggered . | . . . . . . . . . . Exploration Rate (%) 43 | 6 42 24 98 91 7 35 39 45 43 Regions Visited 9 Branch Regions 6 Pre-discovered Areas 6 | . . 1 . 3 . 1 . 1 . Known Exits Taken 3 | . . . . . 1 1 1 . . Unknown Exits Taken 6 | 1 1 1 1 1 . . . 1 . Scrap Searched 13 | . . . . 9 . . 2 2 . Spaces Dug 41 | . . . . . 9 31 1 . . Terrain Destroyed 136 | . . 3 . . 21 111 1 . . Melee 38 | . . . . . 9 28 1 . . Projectile 26 | . . . . . 3 23 . . . AOE 72 | . . 3 . . 9 60 . . . Terrain Rammed . | . . . . . . . . . . Walls Destroyed . | . . . . . . . . . . Machines Disabled . | . . . . . . . . . . Actions | -11 -10 -10 -9 -9 -6 -5 -5 -5 -5 --------- Run | Yrd Mat Sub Rec Scr Fac Fac Upp Upp War Total 7334 | 82 355 370 746 2539 453 1738 272 333 446 Wait 296 | 1 33 . . 4 24 206 4 20 4 Move 6248 | 59 300 321 702 2458 312 1163 252 297 384 Hop . | . . . . . . . . . . Pick Up 147 | 11 4 4 18 38 15 43 2 4 8 Fast Attach 57 | 4 . . . 6 12 29 3 . 3 Attach 70 | 3 . 3 2 3 19 30 . 3 7 Detach 13 | . . . . . 2 10 . 1 . Swap 92 | . 6 8 6 9 7 46 . 3 7 Drop 95 | 1 1 . 5 20 1 48 3 2 14 Fire 156 | 2 11 34 12 . 37 59 . . 1 Melee 152 | . . . . . 23 104 7 3 15 Ram 1 | . . . . . 1 . . . . Kick 2 | . . . . . . . . . 2 Crush 2 | 1 . . 1 . . . . . . Escape Stasis . | . . . . . . . . . . Rewire 1 | . . . . . . . . . 1 Trap . | . . . . . . . . . . Miscellaneous 2 | . . . . 1 . . 1 . . Route ------- -11/Scrapyard -10/Materials (discovered 2 exits: [*Mat] / *Sub) -10/Subcaves (discovered 2 exits: [*Mat] / *Rec) -9/Recycling (discovered 2 exits: [*Fac] / *Scr) -9/Scraptown (discovered 2 exits: *Fac x2) -6/Factory (discovered 5 exits: *Fac x3 / Low x2) -5/Factory (discovered 4 exits: *Upp x2 / Ext x2) -5/Upper Caves -5/Upper Caves -5/Warlord (discovered 1 exit: Pro) History --------- Turn | Location | Event 2 | -11/Scrapyard | Met Revision 17 13 | -11/Scrapyard | Discovered new exit (range 15) 114 | -11/Scrapyard | Entered Materials 305 | -10/Materials | Discovered new exit (range 10) 313 | -10/Materials | Build established: Mutant 452 | -10/Materials | Discovered new exit (range 7) 611 | -10/Materials | Entered Subcaves 767 | -10/Subcaves | Discovered new exit (range 16) 798 | -10/Subcaves | Visited Clippyterm 803 | -10/Subcaves | Learned Factory fabricator intel 888 | -10/Subcaves | Learned location of Zion (-7) 1008 | -10/Subcaves | Shifting Twisted Machinery released Battle Rifle 1032 | -10/Subcaves | Shifting Twisted Machinery released Spk. Treads 1049 | -10/Subcaves | Discovered new exit (range 12) 1221 | -10/Subcaves | Entered Recycling 1518 | -9/Recycling | Discovered new exit (range 8) 2726 | -9/Recycling | Scanned before Scraplab entrance 2776 | -9/Recycling | Discovered new exit (range 11) 2786 | -9/Recycling | Entered Scraplab 2820 | -9/Recycling | Entered Scraptown 2820 | -9/Scraptown | System corruption cleaned by C-Scrubber 3097 | -9/Scraptown | Heard Great Nut preacher, LISTEN AND RECITE! 3519 | -9/Scraptown | Discovered new exit (range 5) 3849 | -9/Scraptown | Visited Assassins FH 3917 | -9/Scraptown | Visited Cyclists 4074 | -9/Scraptown | Visited Spacefarers 4642 | -9/Scraptown | Visited Supply Room 4802 | -9/Scraptown | Visited Bundlers 5063 | -9/Scraptown | Visited SPCMW 5128 | -9/Scraptown | Visited Symbiants 5209 | -9/Scraptown | Visited UFD Registry 5209 | -9/Scraptown | Registered with UFD as "Shadowlauncher" 5332 | -9/Scraptown | Visited Science Guys 5447 | -9/Scraptown | Visited Derelict Rescue Squad 5468 | -9/Scraptown | Found DRS Beacon 5537 | -9/Scraptown | Visited Supply Room 5622 | -9/Scraptown | Visited Scrapoid Research Area 5707 | -9/Scraptown | Visited Cartography Club 5899 | -9/Scraptown | Released all parts (7) 5940 | -9/Scraptown | Learned location of Extension (-5) 5940 | -9/Scraptown | Learned location of Hub_04(d) (-5) 5940 | -9/Scraptown | Learned 8 Materials zone layouts 5940 | -9/Scraptown | Learned 12 Factory zone layouts 5940 | -9/Scraptown | Learned 12 Research zone layouts 5940 | -9/Scraptown | Learned 4 Mines zone layouts 5940 | -9/Scraptown | Learned 8 Access zone layouts 5940 | -9/Scraptown | Learned 8 Lower Caves zone layouts 5940 | -9/Scraptown | Learned 20 Upper Caves zone layouts 5940 | -9/Scraptown | Learned location of 1 exit from Factory 5940 | -9/Scraptown | Learned location of 3 exits from Factory 5940 | -9/Scraptown | Learned location of 2 exits from Lower Caves 6048 | -9/Scraptown | Found Deep Structural Scanner 6216 | -9/Scraptown | Visited Analyses Database 6295 | -9/Scraptown | Visited LU-1G1's Boring Crew 6447 | -9/Scraptown | Visited Curators Association 6562 | -9/Scraptown | Visited Observation Area 6720 | -9/Scraptown | Visited Research Penetration Think Tank 7208 | -9/Scraptown | Received an X-ray algorithm 7334 | -9/Scraptown | Ran an X-ray algorithm 9680 | -9/Scraptown | Entered Cyclist Reading Room 10290 | -9/Scraptown | Met Optimus 10290 | -9/Scraptown | Accepted into 0bPrime 10481 | -9/Scraptown | Discovered new exit (range 9) 10526 | -9/Scraptown | System corruption cleaned by C-Scrubber 10530 | -9/Scraptown | Entered Factory 10530 | -6/Factory | Evolved 8 slots: Propulsion x4, Utility x3, Weapon x1 10531 | -6/Factory | Identified exit to Lower Caves 10531 | -6/Factory | Identified exit to Factory 10533 | -6/Factory | Loaded intel: 6 fabricator locations 10602 | -6/Factory | Identified exit to DSF 10629 | -6/Factory | Fabricated Imp. Treads (x2) 10643 | -6/Factory | Garrison activated, responded to threat 10744 | -6/Factory | Lost 17 parts (2p6n5u4w) 10968 | -6/Factory | Scrapoid reinforcements arrived 11095 | -6/Factory | Found Scrap Suit 11130 | -6/Factory | Found Scrap Suit 11136 | -6/Factory | Lost 4 allies 11432 | -6/Factory | Entered another Factory area 11432 | -5/Factory | Evolved 2 slots: Utility x1, Weapon x1 11433 | -5/Factory | Identified exit to Extension 11463 | -5/Factory | Lost 6 parts (3n2u1w) 11524 | -5/Factory | Fabricated Imp. Treads (x2) 12200 | -5/Factory | Lost 4 parts (1n2u1w) 12382 | -5/Factory | Lost 3 parts (2n1w) 12541 | -5/Factory | Loaded intel: 8 recycling unit locations 12688 | -5/Factory | Learned location of Protoforge (-3) 12762 | -5/Factory | System corruption reached 10% 12809 | -5/Factory | Lost 4 parts (2n2u) 12906 | -5/Factory | Lost 3 parts (3n) 12948 | -5/Factory | Destroyed 8 combat bots 13009 | -5/Factory | Spotted B-75 Beast 13347 | -5/Factory | Lost 3 parts (2n1u) 13426 | -5/Factory | Build established: Scavenger-Gladiator 13444 | -5/Factory | Identified exit to Upper Caves 13816 | -5/Factory | Garrison activated, responded to threat 13890 | -5/Factory | Entered Upper Caves 13891 | -5/Upper Caves | Identified exit to Upper Caves 13895 | -5/Upper Caves | Activated DRS Beacon 14142 | -5/Upper Caves | Attracted the attention of an 0b10 checkpoint 14189 | -5/Upper Caves | Entered an active Warlord outpost 14228 | -5/Upper Caves | Learned Factory stockpile data 14228 | -5/Upper Caves | Learned Armory security intel 14228 | -5/Upper Caves | Learned Factory garrison access intel 14401 | -5/Upper Caves | Entered another Upper Caves area 14420 | -5/Upper Caves | Learned location of Warlord (-5) 14542 | -5/Upper Caves | Attracted the attention of an 0b10 checkpoint 14668 | -5/Upper Caves | Learned Factory interactive machine intel 14842 | -5/Upper Caves | Discovered new exit (range 13) 15009 | -5/Upper Caves | Entered Warlord 15010 | -5/Warlord | Identified exit to Proximity Caves 15076 | -5/Warlord | System corruption cleaned by Quarantine Array 15324 | -5/Warlord | Found Prototype Device 15324 | -5/Warlord | Identified Minesniffer Drone Bay 15329 | -5/Warlord | Found Minesniffer Drone Bay 15443 | -5/Warlord | Attacked by Warlord forces 15446 | -5/Warlord | Spotted 95-HKA(g) 15465 | -5/Warlord | Destroyed 95-HKA(g) 15556 | -5/Warlord | Spotted IM-JD0(B) 15556 | -5/Warlord | Spotted B2-S6G(B) 15613 | -5/Warlord | Warlord's base attacked by MAIN.C 15616 | -5/Warlord | Core integrity fell below 50% 15674 | -5/Warlord | Released all parts (6) 15680 | -5/Warlord | Core integrity fell below 20% 15682 | -5/Warlord | Destroyed by B2-S6G(B) with Slug Cannon Last Messages --------------- 15658_ Minesniffer Drone system terminally corrupted. 15658_ Minesniffer Drone knocked back. 15660_ Minesniffer Drone system terminally corrupted. 15663_ 2E-HG9(p) resets 11-ZJM(Y), system corruption cleaned. 15671_ Ovr. Scrapsphere destroyed. 15673_ Dropped Hcp. Storage Unit. 15673_ Dropped Microactuators. 15674_ Dropped Energy Well. 15674_ Door malfunctions. 15674_ Released Falx. 15674_ Released Mak. Spear. 15674_ Released Lgt. Antimatter Reactor. 15674_ Released Machine Analyzer. 15674_ Released Adv. Sensor Array. 15675_ Knocked back. 15677_ Acquired 3 matter. 15679_ Knocked back. Map ----- +----------------------------------------------------+ | #######?# ## =/ #?????????????????? | | ????????# ## | #?????????????????? | | ????????# ## #?????????????????? | | ????????# ## = #?????????????????? | | ????????# ########+#######?????????????????? | | ????????# #????# #?????????????????????? | | ????????# ###### #?????????????????????? | | ????????# + #?????????????????????? | | ????????# ###### #?????????????????????? | | ????????#######+#????# #?????????????????????? | | ??????????????# #????## ##?????????????????????? | | ??????????????# #?????# #??????""??????????????? | | ??????????????# #?????# #?????#""#?????????????? | | ????????####### ##????# #?????#""#?????????????? | | ????????# # #?#### #######""#####?????????? | | ????????# + ##?# Y # "" "########### | | ????????# ^^ # #### # "" """""""""""" | | ????????# """ # # ## # "" """""""""""" | | ????????# """ # /^ | | ????????# """ + / | | ????????# """ # / | | ????????# """ + / | | ????????# ### ##BB # "" """""""""""" | | ????????# #?####BB # "" """""""""""" | | ????????# #????#% # "" "########### | | ????????# ######### @#######""#####?????????? | | ????????########""!!!#; %Y#????#""#?????????????? | | ???????????????#"" ! ; ##????#""#?????????????? | | ???????????????#""!! ## % #??????""??????????????? | | ???????????????#""!!!## #??????????????????????? | | ???????????????######## #??????????????????????? | | ??????????????????????# #??????????????????????? | | ??????????????????????# #??????????????????????? | | ??????????????????????# #??????????????????????? | | ??????????????????????# #??????????????????????? | | ??????????????????????#% #??????????????????????? | | ??????????????????????# #######????????????????? | | ??????????????????????#/p ##X ##???????????????? | | ????????????#######???#&/p/ X"#???????????????? | | ????????????#!!"""##??#&=/# "#???????????????? | | ????????????#!! X "#??#!p!## X"#???????????????? | | ????????????#"" !#??#]&]##X X "#???????????????? | | ????????????#""X !#??#/!!##"""""#???????????????? | | ????????????#""" !#??#/*!########???????????????? | | ????????????#### ##?## ##?????????????????????? | | ???????????????##+#### #?????????????????????? | | ############????# #?????????????????????? | | #! ###### #?????????????????????? | | %+! = %! #?????????????????????? | | =#! ##%"##""""# #?????????????????????? | +----------------------------------------------------+ Best States ------------- Heat Dissipation 59 Coolant Potential 50 Energy Generation 21 Energy Capacity 710 Matter Stores 550 Matter Capacity 550 Sight Range 16 Robot Scan Range 16 Terrain Scan Density 110 Armor Coverage 375 Resistance: KI 25 Weapon Shielding 66 Melee Speed Boost 20 Phase Shifting 5 Evasion (%) 55 Recoil Reduction 6 Authchip Count 3 Item Schematics ----------------- Imp. Treads | -9/Recycling | Hacked Huge Storage Unit | -9/Recycling | Hacked Particle Cannon | -9/Recycling | Hacked Med. Treads | -5/Factory | Hacked Robot Schematics ------------------ None Fabricated ------------ Imp. Treads | x2 | -6/Factory | Authchip Imp. Treads | x2 | -5/Factory | Authchip Repaired ---------- Nothing Alien Tech Used ----------------- None Achievements -------------- None Challenges ------------ None Game ------ Seed TerrabombScrapoidChip Manual? 0 Play Time 03:01:40 Cumulative 144.2 hours Start 2025.09.05 @ 19:58:57 End 2025.09.07 @ 23:12:32 Sessions 10 Manual Loads 0 Difficulty Rogue Special Mode None Game No. 53 Rogue 53 Adventurer 0 Explorer 0 Win Type - Total 2 Types 2/0/0/0/0/0/0/0/0/0 Lore% 55 Gallery% 56 Achievement% 48 Wizard Run 0 Options --------- Layout 1 ASCII 0 Keyboard 0 Movement Mouse Keybinds 0 Fullscreen 1 Font 32/Smallcaps Map View 50x35 Zoom Use 0% Tactical HUD 1 Map Filters NONE Filters NONE Steam 1 RUN: 2a0a98ef-b8aa-4e80-a11d-a4ec0e87ecd8